fUST/lending_fUST_20250713
["ID","MTS","AMOUNT","RATE_DAILY","PERIOD"]
[371565579,1752357048585,-460.0,0.00016986,2]
[371565580,1752357048595,-666.55,0.00016986,2]
[371565581,1752357048605,-460.0,0.00016986,2]
[371565582,1752357048615,-460.0,0.00016986,2]
[371565583,1752357048624,-460.0,0.00016986,2]
[371565584,1752357048634,-302.68778321,0.00016986,2]
[371565585,1752357048644,-513.37,0.00016986,2]
[371565586,1752357048653,-460.0,0.00016986,2]
[371565587,1752357048663,-460.0,0.00016986,2]
[371565588,1752357048672,-460.0,0.00016986,2]
[371565589,1752357048682,-460.0,0.00016986,2]
[371565590,1752357048692,-2216.81,0.00016986,2]
[371565591,1752357048702,-546.50156967,0.00016986,2]
[371565592,1752357048711,-460.0,0.00016986,2]
[371565593,1752357048721,-518.4,0.00016986,2]
[371565594,1752357048731,-460.0,0.00016986,2]
[371565595,1752357048741,-548.97,0.00016986,2]
[371565596,1752357048751,-460.0,0.00016986,2]
[371565597,1752357048760,-605.1,0.00016986,2]
[371565598,1752357048771,-3142.18,0.00016986,2]
[371565599,1752357048780,-460.0,0.00016986,2]
[371565600,1752357048790,-460.0,0.00016986,2]
[371565601,1752357048800,-460.0,0.00016986,2]
[371565602,1752357048810,-5920.24,0.00016986,2]
[371565603,1752357048820,-460.0,0.00016986,2]
[371565604,1752357048829,-875.58,0.00016986,2]
[371565605,1752357048839,-460.0,0.00016986,2]
[371565606,1752357048849,-460.0,0.00016986,2]
[371565607,1752357048859,-460.0,0.00016986,2]
[371565608,1752357048869,-556.21,0.00016986,2]
[371565609,1752357048879,-460.0,0.00016986,2]
[371565610,1752357048889,-460.0,0.00016986,2]
[371565611,1752357048900,-460.0,0.00016986,2]
[371565612,1752357048910,-460.0,0.00016986,2]
[371565613,1752357048920,-5429.91,0.00016986,2]
[371565614,1752357048930,-460.0,0.00016986,2]
[371565615,1752357048940,-460.0,0.00016986,2]
[371565616,1752357048950,-460.0,0.00016986,2]
[371565617,1752357048960,-460.0,0.00016986,2]
[371565618,1752357048970,-460.0,0.00016986,2]
[371565619,1752357048980,-460.0,0.00016986,2]
[371565620,1752357048989,-634.32,0.00016986,2]
[371565621,1752357048999,-460.0,0.00016986,2]
[371565622,1752357049009,-589.14,0.00016986,2]
[371565623,1752357049018,-460.0,0.00016986,2]
[371565624,1752357049027,-1846.78,0.00016986,2]
[371565625,1752357049037,-1044.98,0.00016986,2]
[371565626,1752357049047,-460.0,0.00016986,2]
[371565627,1752357049056,-460.0,0.00016986,2]
[371565628,1752357049066,-460.0,0.00016987,2]
[371565629,1752357049076,-463.17672763,0.00016987,2]
[371565630,1752357049086,-460.0,0.00016987,2]
[371565631,1752357049095,-460.0,0.00016987,2]
[371565632,1752357049104,-460.0,0.00016987,2]
[371565633,1752357049114,-460.0,0.00016987,2]
[371565634,1752357049123,-460.0,0.00016987,2]
[371565635,1752357049133,-460.0,0.00016987,2]
[371565636,1752357049143,-460.0,0.00016987,2]
[371565637,1752357049152,-500.0,0.00017063,2]
[371565638,1752357049162,-500.0,0.0001711,2]
[371565640,1752357049172,-500.0,0.0001711,2]
[371565641,1752357049181,-526.26988473,0.0001711,2]
[371565642,1752357049191,-500.0,0.0001711,2]
[371565643,1752357049201,-500.0,0.0001711,2]
[371565644,1752357049212,-502.51817603,0.00017122,2]
[371565645,1752357049224,-162.65013545,0.0001714,2]
[371565647,1752357049233,-397.40443614,0.0001714,2]
[371565648,1752357049243,-500.0,0.0001714,2]
[371565651,1752357049253,-500.0,0.00017144,2]
[371565652,1752357049265,-500.0,0.0001715,2]
[371565654,1752357049275,-500.0,0.0001715,2]
[371565655,1752357049284,-500.0,0.0001715,2]
[371565656,1752357049295,-3924.06288853,0.0001721,2]
[371565657,1752357049306,-500.0,0.00017226,2]
[371565658,1752357049316,-460.0,0.0001726,2]
[371565659,1752357049326,-460.0,0.0001726,2]
[371565660,1752357049335,-460.0,0.0001726,2]
[371565661,1752357049345,-460.0,0.0001726,2]
[371565662,1752357049354,-460.0,0.0001726,2]
[371565663,1752357049364,-410.63,0.0001726,2]
[371565664,1752357049373,-460.0,0.0001726,2]
[371565665,1752357049382,-460.0,0.0001726,2]
[371565666,1752357049391,-460.0,0.0001726,2]
[371565667,1752357049401,-460.0,0.0001726,2]
[371565668,1752357049410,-460.0,0.0001726,2]
[371565669,1752357049420,-460.0,0.0001726,2]
[371565670,1752357049429,-460.0,0.0001726,2]
[371565671,1752357049438,-460.0,0.0001726,2]
[371565672,1752357049448,-460.0,0.0001726,2]
[371565673,1752357049458,-460.0,0.0001726,2]
[371565674,1752357049467,-508.69,0.0001726,2]
[371565675,1752357049476,-460.0,0.0001726,2]
[371565676,1752357049486,-460.0,0.0001726,2]
[371565677,1752357049495,-460.0,0.0001726,2]
[371565678,1752357049504,-460.0,0.0001726,2]
[371565679,1752357049513,-460.0,0.0001726,2]
[371565680,1752357049522,-460.0,0.0001726,2]
[371565681,1752357049532,-460.0,0.0001726,2]
[371565682,1752357049541,-460.0,0.0001726,2]
[371565683,1752357049551,-460.0,0.0001726,2]
[371565684,1752357049560,-460.0,0.0001726,2]
[371565685,1752357049569,-460.0,0.0001726,2]
[371565686,1752357049578,-335.35717595,0.0001726,2]
[371565687,1752357049587,-598.62,0.0001726,2]
[371565688,1752357049596,-460.0,0.0001726,2]
[371565689,1752357049606,-460.0,0.0001726,2]
[371565690,1752357049615,-315.43,0.0001726,2]
[371565691,1752357049624,-460.0,0.0001726,2]
[371565692,1752357049633,-517.79,0.0001726,2]
[371565693,1752357049642,-460.0,0.0001726,2]
[371565694,1752357049651,-460.0,0.0001726,2]
[371565695,1752357049660,-1796.12,0.0001726,2]
[371565696,1752357049670,-1833.61,0.0001726,2]
[371565697,1752357049679,-460.0,0.0001726,2]
[371565698,1752357049689,-460.0,0.0001726,2]
[371565699,1752357049699,-460.0,0.0001726,2]
[371565700,1752357049916,-460.0,0.0001726,2]
[371565701,1752357049925,-460.0,0.0001726,2]
[371565702,1752357049935,-460.0,0.0001726,2]
[371565703,1752357049945,-460.0,0.0001726,2]
[371565704,1752357049955,-527.69,0.0001726,2]
[371565705,1752357049964,-460.0,0.0001726,2]
[371565706,1752357049973,-460.0,0.0001726,2]
[371565707,1752357049983,-460.0,0.0001726,2]
[371565708,1752357049993,-460.0,0.0001726,2]
[371565709,1752357050002,-3698.67,0.0001726,2]
[371565710,1752357050012,-726.0,0.0001726,2]
[371565711,1752357050022,-2274.87,0.0001726,2]
[371565712,1752357050033,-460.0,0.0001726,2]
[371565713,1752357050043,-460.0,0.0001726,2]
[371565714,1752357050053,-699.31,0.0001726,2]
[371565715,1752357050063,-995.78,0.0001726,2]
[371565716,1752357050073,-460.0,0.0001726,2]
[371565717,1752357050082,-460.0,0.0001726,2]
[371565718,1752357050091,-460.0,0.0001726,2]
[371565719,1752357050101,-460.0,0.0001726,2]
[371565720,1752357050110,-460.0,0.0001726,2]
[371565721,1752357050121,-460.0,0.0001726,2]
[371565722,1752357050131,-648.79,0.0001726,2]
[371565724,1752357050141,-647.47,0.0001726,2]
[371565726,1752357050150,-193.8,0.0001726,2]
[371565728,1752357050159,-1247.94,0.0001726,2]
[371565730,1752357050169,-460.0,0.0001726,2]
[371565732,1752357050178,-813.18,0.0001726,2]
[371565734,1752357050188,-460.0,0.0001726,2]
[371565736,1752357050199,-561.31,0.0001726,2]
[371565738,1752357050209,-460.31,0.0001726,2]
[371565740,1752357050222,-3681.33,0.0001726,2]
[371565742,1752357050231,-470.2,0.0001726,2]
[371565744,1752357050241,-3587.3,0.0001726,2]
[371565745,1752357050251,-460.0,0.0001726,2]
[371565746,1752357050261,-479.83,0.0001726,2]
[371565747,1752357050271,-2620.87,0.0001726,2]
[371565748,1752357050281,-460.0,0.0001726,2]
[371565749,1752357050293,-500.0,0.0001726,2]
[371565750,1752357050303,-666.55,0.0001726,2]
[371565751,1752357050312,-513.37,0.0001726,2]
[371565752,1752357050323,-556.43091798,0.0001726,2]
[371565753,1752357050333,-460.0,0.0001726,2]
[371565754,1752357050342,-2216.81,0.0001726,2]
[371565755,1752357050352,-460.0,0.0001726,2]
[371565756,1752357050362,-518.4,0.0001726,2]
[371565757,1752357050372,-460.0,0.0001726,2]
[371565758,1752357050381,-548.97,0.0001726,2]
[371565759,1752357050392,-460.0,0.0001726,2]
[371565760,1752357050401,-605.1,0.0001726,2]
[371565761,1752357050410,-3142.18,0.0001726,2]
[371565762,1752357050420,-460.0,0.0001726,2]
[371565763,1752357050437,-460.0,0.0001726,2]
[371565764,1752357050448,-5920.24,0.0001726,2]
[371565765,1752357050459,-460.0,0.0001726,2]
[371565766,1752357050468,-875.58,0.0001726,2]
[371565767,1752357050478,-460.0,0.0001726,2]
[371565768,1752357050488,-460.0,0.0001726,2]
[371565769,1752357050499,-556.21,0.0001726,2]
[371565770,1752357050509,-460.0,0.0001726,2]
[371565771,1752357050524,-460.0,0.0001726,2]
[371565772,1752357050543,-460.0,0.0001726,2]
[371565773,1752357050553,-440.4016656,0.0001726,2]
[371565774,1752357050562,-5429.91,0.0001726,2]
[371565775,1752357050572,-460.0,0.0001726,2]
[371565776,1752357050581,-460.0,0.0001726,2]
[371565777,1752357050591,-460.0,0.0001726,2]
[371565778,1752357050601,-460.0,0.0001726,2]
[371565779,1752357050610,-460.0,0.0001726,2]
[371565780,1752357050620,-460.0,0.0001726,2]
[371565781,1752357050629,-634.32,0.0001726,2]
[371565782,1752357050638,-353.6,0.0001726,2]
[371565783,1752357050648,-1846.78,0.0001726,2]
[371565784,1752357050657,-1044.98,0.0001726,2]
[371565785,1752357050667,-460.0,0.0001726,2]
[371565786,1752357050676,-460.0,0.00017261,2]
[371565787,1752357050686,-294.57498993,0.00017261,2]
[371565788,1752357050695,-181.32,0.00017261,2]
[371565789,1752357050705,-460.0,0.00017261,2]
[371565790,1752357050715,-500.0,0.00017307,2]
[371565791,1752357050725,-1000.0,0.00017321,2]
[371565792,1752357050735,-500.0,0.00017321,2]
[371565793,1752357050745,-1000.0,0.00017321,2]
[371565794,1752357050755,-1000.0,0.00017321,2]
[371565795,1752357050765,-1000.0,0.00017321,2]
[371565796,1752357050775,-500.0,0.00017388,2]
[371565797,1752357050785,-500.0,0.00017469,2]
[371565798,1752357050794,-3924.06288853,0.00017521,2]
[371565799,1752357050804,-460.0,0.00017534,2]
[371565800,1752357050814,-460.0,0.00017534,2]
[371565801,1752357050823,-460.0,0.00017534,2]
[371565802,1752357050833,-460.0,0.00017534,2]
[371565803,1752357050843,-460.0,0.00017534,2]
[371565804,1752357050853,-460.0,0.00017534,2]
[371565805,1752357050862,-460.0,0.00017534,2]
[371565806,1752357050872,-460.0,0.00017534,2]
[371565807,1752357050882,-460.0,0.00017534,2]
[371565808,1752357050891,-460.0,0.00017534,2]
[371565809,1752357050901,-460.0,0.00017534,2]
[371565810,1752357050910,-460.0,0.00017534,2]
[371565811,1752357050920,-460.0,0.00017534,2]
[371565812,1752357050930,-460.0,0.00017534,2]
[371565813,1752357050939,-460.0,0.00017534,2]
[371565814,1752357050949,-460.0,0.00017534,2]
[371565815,1752357050959,-460.0,0.00017534,2]
[371565816,1752357051000,-460.0,0.00017534,2]
[371565817,1752357051010,-460.0,0.00017534,2]
[371565818,1752357051019,-460.0,0.00017534,2]
[371565819,1752357051028,-460.0,0.00017534,2]
[371565820,1752357051038,-460.0,0.00017534,2]
[371565821,1752357051047,-460.0,0.00017534,2]
[371565822,1752357051057,-598.62,0.00017534,2]
[371565823,1752357051067,-460.0,0.00017534,2]
[371565824,1752357051076,-460.0,0.00017534,2]
[371565825,1752357051086,-460.0,0.00017534,2]
[371565826,1752357051095,-460.0,0.00017534,2]
[371565827,1752357051104,-460.0,0.00017534,2]
[371565828,1752357051113,-1796.12,0.00017534,2]
[371565829,1752357051122,-1833.61,0.00017534,2]
[371565830,1752357051132,-460.0,0.00017534,2]
[371565831,1752357051141,-460.0,0.00017534,2]
[371565832,1752357051150,-460.0,0.00017534,2]
[371565833,1752357051160,-460.0,0.00017534,2]
[371565834,1752357051169,-460.0,0.00017534,2]
[371565835,1752357051178,-460.0,0.00017534,2]
[371565836,1752357051188,-460.0,0.00017534,2]
[371565837,1752357051197,-460.0,0.00017534,2]
[371565838,1752357051208,-460.0,0.00017534,2]
[371565839,1752357051219,-460.0,0.00017534,2]
[371565840,1752357051229,-460.0,0.00017534,2]
[371565841,1752357051238,-3698.67,0.00017534,2]
[371565842,1752357051248,-726.0,0.00017534,2]
[371565843,1752357051258,-2274.87,0.00017534,2]
[371565844,1752357051268,-460.0,0.00017534,2]
[371565845,1752357051277,-460.0,0.00017534,2]
[371565846,1752357051286,-699.31,0.00017534,2]
[371565847,1752357051298,-995.78,0.00017534,2]
[371565848,1752357051308,-460.0,0.00017534,2]
[371565849,1752357051318,-460.0,0.00017534,2]
[371565850,1752357051327,-460.0,0.00017534,2]
[371565851,1752357051337,-460.0,0.00017534,2]
[371565852,1752357051346,-460.0,0.00017534,2]
[371565853,1752357051355,-648.79,0.00017534,2]
[371565854,1752357051364,-647.47,0.00017534,2]
[371565855,1752357051374,-1247.94,0.00017534,2]
[371565856,1752357051384,-460.0,0.00017534,2]
[371565857,1752357051394,-813.18,0.00017534,2]
[371565858,1752357051403,-460.0,0.00017534,2]
[371565859,1752357051411,-561.31,0.00017534,2]
[371565860,1752357051421,-460.31,0.00017534,2]
[371565861,1752357051430,-3681.33,0.00017534,2]
[371565862,1752357051439,-470.2,0.00017534,2]
[371565863,1752357051449,-3587.3,0.00017534,2]
[371565864,1752357051458,-460.0,0.00017534,2]
[371565865,1752357051467,-479.83,0.00017534,2]
[371565866,1752357051477,-2620.87,0.00017534,2]
[371565867,1752357051486,-460.0,0.00017534,2]
[371565868,1752357051496,-666.55,0.00017534,2]
[371565869,1752357051505,-513.37,0.00017534,2]
[371565870,1752357051514,-460.0,0.00017534,2]
[371565871,1752357051525,-2216.81,0.00017534,2]
[371565872,1752357051534,-460.0,0.00017534,2]
[371565873,1752357051543,-518.4,0.00017534,2]
[371565874,1752357051553,-460.0,0.00017534,2]
[371565875,1752357051562,-548.97,0.00017534,2]
[371565876,1752357051571,-151.0,0.00017534,2]
[371565877,1752357051581,-460.0,0.00017534,2]
[371565878,1752357051590,-151.0,0.00017534,2]
[371565879,1752357051599,-605.1,0.00017534,2]
[371565880,1752357051609,-3142.18,0.00017534,2]
[371565881,1752357051618,-460.0,0.00017534,2]
[371565882,1752357051627,-460.0,0.00017534,2]
[371565883,1752357051636,-5920.24,0.00017534,2]
[371565884,1752357051645,-460.0,0.00017534,2]
[371565885,1752357051655,-875.58,0.00017534,2]
[371565886,1752357051664,-460.0,0.00017534,2]
[371565887,1752357051673,-460.0,0.00017534,2]
[371565888,1752357051682,-556.21,0.00017534,2]
[371565889,1752357051691,-460.0,0.00017534,2]
[371565890,1752357051702,-460.0,0.00017534,2]
[371565891,1752357051711,-460.0,0.00017534,2]
[371565892,1752357051720,-5429.91,0.00017534,2]
[371565893,1752357051729,-460.0,0.00017534,2]
[371565894,1752357051739,-460.0,0.00017534,2]
[371565895,1752357051748,-460.0,0.00017534,2]
[371565896,1752357051757,-460.0,0.00017534,2]
[371565897,1752357051766,-460.0,0.00017534,2]
[371565898,1752357051776,-460.0,0.00017534,2]
[371565899,1752357051786,-634.32,0.00017534,2]
[371565900,1752357051795,-151.0,0.00017534,2]
[371565901,1752357051805,-151.0,0.00017534,2]
[371565902,1752357051814,-1846.78,0.00017534,2]
[371565903,1752357051824,-1044.98,0.00017534,2]
[371565904,1752357051833,-460.0,0.00017534,2]
[371565905,1752357051843,-460.0,0.00017535,2]
[371565906,1752357051852,-460.0,0.00017535,2]
[371565907,1752357051861,-500.0,0.00017551,2]
[371565908,1752357051871,-500.0,0.00017632,2]
[371565909,1752357051880,-1376.46142752,0.0001764,2]
[371565910,1752357051890,-500.0,0.00017657,2]
[371565911,1752357051899,-500.0,0.00017657,2]
[371565912,1752357051909,-500.0,0.00017657,2]
[371565913,1752357051918,-500.0,0.00017657,2]
[371565914,1752357051927,-500.0,0.00017657,2]
[371565915,1752357051936,-571.70043832,0.00017657,2]
[371565916,1752357051946,-500.0,0.00017657,2]
[371565917,1752357051955,-500.0,0.00017657,2]
[371565918,1752357051964,-500.0,0.00017657,2]
[371565919,1752357051974,-500.0,0.00017657,2]
[371565920,1752357051983,-500.0,0.00017657,2]
[371565921,1752357051993,-500.0,0.00017657,2]
[371565922,1752357052003,-500.0,0.00017657,2]
[371565923,1752357052013,-500.0,0.00017657,2]
[371565924,1752357052022,-1000.0,0.00017658,2]
[371565925,1752357052032,-647.00222637,0.00017658,2]
[371565926,1752357052042,-500.0,0.00017688,2]
[371565927,1752357052051,-500.0,0.00017713,2]
[371565928,1752357052061,-500.0,0.00017794,2]
[371565929,1752357052070,-460.0,0.00017808,2]
[371565930,1752357052080,-460.0,0.00017808,2]
[371565931,1752357052090,-460.0,0.00017808,2]
[371565932,1752357052100,-586.01,0.00017808,2]
[371565933,1752357052110,-460.0,0.00017808,2]
[371565934,1752357052119,-460.0,0.00017808,2]
[371565935,1752357052129,-460.0,0.00017808,2]
[371565936,1752357052139,-460.0,0.00017808,2]
[371565937,1752357052148,-460.0,0.00017808,2]
[371565938,1752357052158,-460.0,0.00017808,2]
[371565939,1752357052168,-460.0,0.00017808,2]
[371565940,1752357052177,-460.0,0.00017808,2]
[371565941,1752357052187,-460.0,0.00017808,2]
[371565942,1752357052197,-460.0,0.00017808,2]
[371565943,1752357052208,-460.0,0.00017808,2]
[371565944,1752357052225,-460.0,0.00017808,2]
[371565945,1752357052235,-460.0,0.00017808,2]
[371565946,1752357052245,-460.0,0.00017808,2]
[371565947,1752357052255,-460.0,0.00017808,2]
[371565948,1752357052265,-460.0,0.00017808,2]
[371565949,1752357052275,-460.0,0.00017808,2]
[371565950,1752357052285,-460.0,0.00017808,2]
[371565951,1752357052294,-598.62,0.00017808,2]
[371565952,1752357052304,-460.0,0.00017808,2]
[371565953,1752357052314,-460.0,0.00017808,2]
[371565954,1752357052323,-460.0,0.00017808,2]
[371565955,1752357052334,-460.0,0.00017808,2]
[371565956,1752357052343,-1796.12,0.00017808,2]
[371565957,1752357052354,-460.0,0.00017808,2]
[371565958,1752357052363,-1833.61,0.00017808,2]
[371565959,1752357052373,-460.0,0.00017808,2]
[371565960,1752357052384,-460.0,0.00017808,2]
[371565961,1752357052394,-460.0,0.00017808,2]
[371565962,1752357052403,-460.0,0.00017808,2]
[371565963,1752357052412,-367.23,0.00017808,2]
[371565964,1752357052422,-460.0,0.00017808,2]
[371565965,1752357052431,-460.0,0.00017808,2]
[371565966,1752357052441,-460.0,0.00017808,2]
[371565967,1752357052450,-460.0,0.00017808,2]
[371565968,1752357052460,-460.0,0.00017808,2]
[371565969,1752357052470,-3698.67,0.00017808,2]
[371565970,1752357052479,-726.0,0.00017808,2]
[371565971,1752357052489,-2274.87,0.00017808,2]
[371565972,1752357052498,-168.05,0.00017808,2]
[371565973,1752357052508,-363.96,0.00017808,2]
[371565974,1752357052518,-699.31,0.00017808,2]
[371565975,1752357052527,-995.78,0.00017808,2]
[371565976,1752357052537,-460.0,0.00017808,2]
[371565977,1752357052546,-460.0,0.00017808,2]
[371565979,1752357052555,-460.0,0.00017808,2]
[371565981,1752357052565,-460.0,0.00017808,2]
[371565983,1752357052575,-151.0,0.00017808,2]
[371565984,1752357052584,-151.0,0.00017808,2]
[371565985,1752357052594,-460.0,0.00017808,2]
[371565987,1752357052603,-648.79,0.00017808,2]
[371565989,1752357052613,-647.47,0.00017808,2]
[371565991,1752357052622,-1247.94,0.00017808,2]
[371565993,1752357052632,-460.0,0.00017808,2]
[371565995,1752357052642,-813.18,0.00017808,2]
[371565997,1752357052652,-460.0,0.00017808,2]
[371565999,1752357052662,-561.31,0.00017808,2]
[371566001,1752357052671,-460.31,0.00017808,2]
[371566003,1752357052681,-3681.33,0.00017808,2]
[371566005,1752357052691,-470.2,0.00017808,2]
[371566007,1752357052700,-3587.3,0.00017808,2]
[371566009,1752357052710,-151.0,0.00017808,2]
[371566011,1752357052719,-460.0,0.00017808,2]
[371566013,1752357052729,-479.83,0.00017808,2]
[371566015,1752357052739,-2620.87,0.00017808,2]
[371566016,1752357052748,-196.34398714,0.00017808,2]
[371566017,1752357052757,-666.55,0.00017808,2]
[371566018,1752357052766,-513.37,0.00017808,2]
[371566019,1752357052776,-350.09,0.00017808,2]
[371566020,1752357052785,-2216.81,0.00017808,2]
[371566021,1752357052794,-460.0,0.00017808,2]
[371566022,1752357052803,-518.4,0.00017808,2]
[371566023,1752357052812,-460.0,0.00017808,2]
[371566024,1752357052821,-548.97,0.00017808,2]
[371566025,1752357052831,-151.0,0.00017808,2]
[371566026,1752357052840,-460.0,0.00017808,2]
[371566027,1752357052849,-151.0,0.00017808,2]
[371566028,1752357052859,-605.1,0.00017808,2]
[371566029,1752357052868,-3142.18,0.00017808,2]
[371566030,1752357052877,-460.0,0.00017808,2]
[371566031,1752357052886,-460.0,0.00017808,2]
[371566032,1752357052895,-5920.24,0.00017808,2]
[371566033,1752357052904,-875.58,0.00017808,2]
[371566034,1752357052914,-460.0,0.00017808,2]
[371566035,1752357052923,-460.0,0.00017808,2]
[371566036,1752357052932,-545.98821656,0.00017808,2]
[371566037,1752357052942,-556.21,0.00017808,2]
[371566038,1752357052951,-460.0,0.00017808,2]
[371566039,1752357052960,-460.0,0.00017808,2]
[371566040,1752357052970,-460.0,0.00017808,2]
[371566041,1752357052979,-5429.91,0.00017808,2]
[371566042,1752357052988,-460.0,0.00017808,2]
[371566044,1752357052998,-460.0,0.00017808,2]
[371566046,1752357053008,-460.0,0.00017808,2]
[371566048,1752357053018,-460.0,0.00017808,2]
[371566050,1752357053028,-460.0,0.00017808,2]
[371566052,1752357053037,-460.0,0.00017808,2]
[371566054,1752357053047,-634.32,0.00017808,2]
[371566056,1752357053057,-151.0,0.00017808,2]
[371566058,1752357053066,-151.0,0.00017808,2]
[371566060,1752357053076,-1846.78,0.00017808,2]
[371566062,1752357053086,-1044.98,0.00017808,2]
[371566064,1752357053096,-460.0,0.00017808,2]
[371566066,1752357053106,-460.0,0.00017809,2]
[371566068,1752357053115,-460.0,0.00017809,2]
[371566070,1752357053125,-3924.06288853,0.00017831,2]
[371566072,1752357053135,-500.0,0.00017867,2]
[371566074,1752357053145,-502.54304723,0.00017867,2]
[371566076,1752357053154,-765.143976,0.00017867,2]
[371566078,1752357053165,-765.143976,0.00017867,2]
[371566080,1752357053175,-151.0,0.00017867,2]
[371566082,1752357053186,-1500.0,0.00017868,2]
[371566085,1752357053196,-1000.0,0.00017868,2]
[371566087,1752357053206,-1500.0,0.00017868,2]
[371566089,1752357053220,-1500.0,0.00017868,2]
[371566091,1752357053234,-500.0,0.00017876,2]
[371566093,1752357053244,-1047.74,0.00017897,3]
[371566095,1752357053254,-523.86,0.00017897,3]
[371566097,1752357053264,-2095.48,0.00017898,3]
[371566099,1752357053274,-151.0,0.000179,2]
[371566101,1752357053285,-500.0,0.00017957,2]
[371566103,1752357053300,-420.0,0.00017963,2]
[371566105,1752357053310,-286.18,0.00018,2]
[371566108,1752357053321,-286.18,0.00018,2]
[371566110,1752357053331,-286.18,0.00018,2]
[371566112,1752357053340,-500.0,0.00018038,2]
[371566114,1752357053351,-1200.0,0.00018053,2]
[371566116,1752357053360,-157.026,0.00018081,2]
[371566118,1752357053370,-155.0,0.00018081,2]
[371566120,1752357053380,-460.0,0.00018082,2]
[371566122,1752357053390,-460.0,0.00018082,2]
[371566124,1752357053400,-460.0,0.00018082,2]
[371566126,1752357053411,-460.0,0.00018082,2]
[371566128,1752357053421,-460.0,0.00018082,2]
[371566130,1752357053431,-460.0,0.00018082,2]
[371566132,1752357053440,-460.0,0.00018082,2]
[371566134,1752357053450,-460.0,0.00018082,2]
[371566136,1752357053460,-460.0,0.00018082,2]
[371566138,1752357053470,-460.0,0.00018082,2]
[371566140,1752357053480,-460.0,0.00018082,2]
[371566142,1752357053490,-460.0,0.00018082,2]
[371566144,1752357053500,-460.0,0.00018082,2]
[371566146,1752357053509,-460.0,0.00018082,2]
[371566148,1752357053518,-460.0,0.00018082,2]
[371566150,1752357053528,-151.0,0.00018082,2]
[371566152,1752357053537,-151.0,0.00018082,2]
[371566154,1752357053547,-460.0,0.00018082,2]
[371566156,1752357053556,-460.0,0.00018082,2]
[371566158,1752357053566,-460.0,0.00018082,2]
[371566160,1752357053577,-598.62,0.00018082,2]
[371566162,1752357053587,-151.0,0.00018082,2]
[371566164,1752357053597,-151.0,0.00018082,2]
[371566166,1752357053606,-460.0,0.00018082,2]
[371566168,1752357053616,-151.0,0.00018082,2]
[371566171,1752357053626,-460.0,0.00018082,2]
[371566173,1752357053636,-151.0,0.00018082,2]
[371566175,1752357053646,-460.0,0.00018082,2]
[371566177,1752357053656,-460.0,0.00018082,2]
[371566179,1752357053666,-1796.12,0.00018082,2]
[371566181,1752357053676,-460.0,0.00018082,2]
[371566183,1752357053685,-1833.61,0.00018082,2]
[371566185,1752357053695,-240.56,0.00018082,2]